bitfinex/quotes_ETHUSD_20240722
["timestamp","ask_amount","ask_price","bid_price","bid_amount"]
[1721647575957,2.395,3492.2,3491.9,2.8637]
[1721647576156,1.45680527,3492.1,3492.0,2.86368]
[1721647576342,2.395,3492.4,3491.6,1.003]
[1721647576542,1.45665645,3492.3,3492.1,2.86359]
[1721647576780,1.45665645,3492.3,3491.9,2.86376]
[1721647576781,1.45665645,3492.3,3492.2,2.86352]
[1721647576976,1.45665645,3492.3,3491.9,2.86372]
[1721647577858,0.0491129,3492.2,3491.9,2.86372]
[1721647578084,0.0491129,3492.2,3492.1,2.86358]
[1721647578283,0.0491129,3492.2,3492.0,2.86368]
[1721647578284,6.17761,3492.7,3492.2,2.86351]
[1721647578583,2.07436284,3492.6,3492.3,2.86344]
[1721647578926,1.45661484,3492.5,3492.3,2.86344]
[1721647579887,1.45656605,3492.4,3492.3,2.86344]
[1721647580040,1.45656605,3492.6,3492.5,2.86327]
[1721647580242,1.45654347,3492.6,3492.5,2.86327]
[1721647580572,4.50917637,3493.1,3492.9,2.86294]
[1721647580573,2.76571081,3493.1,3492.9,2.86294]
[1721647580774,1.4563673,3493.0,3492.9,2.86294]
[1721647580942,7.42,3493.2,3493.1,2.86278]
[1721647581143,1.45622216,3493.2,3493.1,2.86278]
[1721647581343,2.3715,3493.5,3493.0,2.86286]
[1721647581344,2.3715,3493.5,3493.2,2.86269]
[1721647581652,1.45619927,3493.4,3493.2,2.86269]
[1721647582297,2.3715,3493.5,3493.2,2.86269]
[1721647584480,2.3715,3493.5,3493.0,2.86286]
[1721647584978,2.3715,3493.5,3493.2,2.8627]
[1721647587297,2.3715,3493.5,3492.8,2.86297]
[1721647587499,3.3745,3493.5,3492.8,2.86297]
[1721647587899,2.86256,3493.4,3492.8,2.86297]
[1721647588111,3.3745,3493.5,3492.9,2.86293]
[1721647588615,3.3745,3493.5,3492.7,2.86305]
[1721647588616,1.003,3493.3,3492.7,2.86305]
[1721647588912,3.86567,3493.3,3492.7,2.86305]
[1721647590216,2.86272,3493.2,3492.6,2.86318]
[1721647590398,2.86272,3493.2,3492.7,2.86311]
[1721647591298,1.003,3493.3,3492.8,2.86302]
[1721647591504,3.86562,3493.3,3492.7,2.86304]
[1721647592788,0.04832513,3493.2,3492.7,2.86304]
[1721647597237,2.91103513,3493.2,3492.7,2.86304]
[1721647597531,0.04832513,3493.2,3492.7,2.86304]
[1721647597898,2.91102513,3493.2,3492.7,2.86304]
[1721647598408,0.04832513,3493.2,3492.8,2.86298]
[1721647598797,2.8626,3493.4,3492.8,2.86298]
[1721647599013,0.04673667,3493.1,3492.8,2.86298]
[1721647599220,3.8656,3493.4,3492.7,2.8631]
[1721647599419,0.04670138,3493.0,3492.7,2.8631]
[1721647599649,2.86268,3493.3,3492.7,2.8631]
[1721647599852,0.04666609,3492.9,3492.7,2.8631]
[1721647600156,0.04663079,3492.8,3492.7,2.8631]
[1721647600327,2.86268,3493.3,3492.7,2.8631]
[1721647600529,0.04677196,3493.2,3492.7,2.8631]
[1721647600727,2.4875,3493.0,3492.5,2.86324]
[1721647600975,0.04666609,3492.9,3492.5,2.86324]
[1721647602424,0.04666609,3492.9,3492.6,2.86318]
[1721647604756,0.04666609,3492.9,3492.7,2.8631]
[1721647604963,5.1141,3493.2,3492.7,2.8631]
[1721647605164,0.04673667,3493.1,3492.7,2.8631]
[1721647605971,0.04673667,3493.1,3492.7,5.72613]
[1721647606135,0.04673667,3493.1,3492.7,2.86303]
[1721647606768,0.04673667,3493.1,3492.8,2.86303]
[1721647607963,2.86262,3493.3,3492.8,2.86303]
[1721647608130,0.04677196,3493.2,3492.8,2.86303]
[1721647608318,2.86256,3493.4,3492.9,2.86293]
[1721647608725,0.04680725,3493.3,3493.0,2.86283]
[1721647608948,2.2949,3493.5,3493.1,2.86276]
[1721647609264,0.04684833,3493.4,3493.1,2.86276]
[1721647609960,0.04684833,3493.4,3493.2,2.86263]
[1721647615277,0.04684833,3493.4,3493.2,2.86263]
[1721647616582,0.04684833,3493.4,3492.9,2.86288]
[1721647617274,0.04684833,3493.4,3493.1,2.86274]
[1721647617679,0.04684833,3493.4,3493.1,5.72547]
[1721647618134,0.04684833,3493.4,3493.1,2.86273]
[1721647620072,0.04684833,3493.4,3493.3,2.86262]
[1721647620282,5.81008806,3493.9,3493.3,2.86262]
[1721647620283,2.94789806,3493.9,3493.6,2.86233]
[1721647620505,2.4991,3493.9,3493.6,2.86233]
[1721647621618,2.4991,3493.9,3493.7,2.86229]
[1721647622307,4.36065595,3494.4,3494.0,2.862]
[1721647622308,3.48034556,3494.4,3494.0,2.862]
[1721647622603,2.2829,3494.4,3494.1,2.86196]
[1721647622805,0.0473232,3494.3,3494.1,2.86196]
[1721647623512,0.0473232,3494.3,3494.1,2.86191]
[1721647623867,7.42,3494.6,3494.2,2.86188]
[1721647624165,2.22290515,3494.6,3494.2,2.86188]
[1721647624368,2.22290515,3494.6,3494.1,2.86191]
[1721647624369,5.22290515,3494.6,3494.1,2.86191]
[1721647624794,8.08447515,3494.6,3494.1,2.86191]
[1721647627467,8.08447515,3494.6,3493.9,5.72418]
[1721647627468,5.86157,3494.6,3493.9,5.72418]
[1721647627680,5.86157,3494.6,3494.0,2.86204]
[1721647629989,3.39,3494.7,3494.0,2.86204]
[1721647630189,2.387,3494.7,3494.2,2.86183]
[1721647633419,6.2515,3494.7,3494.1,2.86194]
[1721647633638,2.86156,3494.6,3494.1,2.86194]
[1721647634625,2.86156,3494.6,3493.9,2.86205]
[1721647634922,1.64615342,3495.1,3493.6,2.86234]
[1721647634923,2.441,3494.4,3493.6,2.86234]
[1721647635125,5.72373,3494.3,3493.7,2.86224]
[1721647635291,2.86186,3494.3,3493.7,5.72446]
[1721647635506,2.441,3494.4,3493.7,2.86222]
[1721647635843,5.30278,3494.4,3493.8,2.86216]
[1721647636835,2.86182,3494.3,3493.8,2.86216]
[1721647637134,2.441,3494.4,3493.8,2.86216]
[1721647637902,0.04682502,3494.3,3493.8,2.86216]
[1721647638603,2.4858,3494.1,3493.6,3.381484]
[1721647638942,0.04673271,3494.0,3493.6,3.381484]
[1721647639178,0.04673271,3494.0,3493.4,2.86249]
[1721647639338,3.86515,3493.9,3493.3,2.86255]
[1721647639643,0.04667449,3493.8,3493.3,2.86255]
[1721647639948,0.04667449,3493.8,3492.9,1.003]
[1721647639949,2.4858,3493.7,3493.2,2.86266]
[1721647640300,0.04662858,3493.6,3493.2,2.86266]
[1721647640741,2.90899858,3493.6,3493.0,5.72561]
[1721647640928,2.90899858,3493.6,3493.1,2.86278]
[1721647641742,2.90899858,3493.6,3492.8,2.86295]
[1721647641743,2.90899858,3493.6,3492.9,2.86287]
[1721647641912,2.90899858,3493.6,3492.9,0.911112]
[1721647642113,2.90899858,3493.6,3493.1,2.86278]
[1721647643849,2.90899858,3493.6,3493.0,2.86285]
[1721647644633,0.04662858,3493.6,3493.1,2.86271]
[1721647645032,0.04662858,3493.6,3493.2,2.8627]
[1721647645234,0.04662858,3493.6,3493.2,2.86264]
[1721647645436,0.04662858,3493.6,3493.5,5.7249]
[1721647645655,0.04662858,3493.6,3493.5,2.86245]
[1721647645828,5.33307,3494.1,3493.5,2.86245]
[1721647646028,5.33307,3494.1,3493.6,2.86237]
[1721647646623,2.4711,3494.1,3493.6,2.86231]
[1721647647717,2.4711,3494.1,3493.6,5.72462]
[1721647647921,2.4711,3494.1,3493.7,2.86224]
[1721647648344,12.63422,3494.3,3493.7,2.86224]
[1721647648922,2.86193,3494.2,3493.7,2.86224]
[1721647649123,6.21722,3494.3,3493.7,2.86224]
[1721647651220,6.72635,3494.5,3493.7,5.35504]
[1721647651417,3.86464,3494.5,3493.9,2.86212]
[1721647651677,2.8618,3494.3,3493.7,5.35504]
[1721647651956,2.8618,3494.3,3493.8,2.86219]
[1721647652123,2.86188,3494.2,3493.6,2.86229]
[1721647652325,2.2701,3494.0,3493.3,3.249144]
[1721647652843,0.04669511,3493.9,3493.5,2.86245]
[1721647653942,0.04669511,3493.9,3493.5,2.8624]
[1721647654554,0.04669511,3493.9,3493.3,5.14747]
[1721647655060,2.86222,3493.8,3493.3,5.14747]
[1721647655254,2.86222,3493.8,3493.3,2.2849]
[1721647655455,0.04668072,3493.7,3493.2,2.8627]
[1721647655863,0.04668072,3493.7,3493.1,2.86278]
[1721647655864,0.04668072,3493.7,3493.3,2.86259]
[1721647656453,0.0466782,3493.6,3493.3,2.86259]
[1721647656825,2.86222,3493.8,3493.3,2.86259]
[1721647657025,0.04671348,3493.7,3493.3,2.86259]
[1721647657238,2.86222,3493.8,3493.3,2.86259]
[1721647657437,0.04626115,3493.6,3493.3,2.86259]
[1721647657756,0.04629644,3493.7,3493.2,2.86269]
[1721647657972,0.04660483,3493.6,3493.2,2.86269]
[1721647658171,2.86222,3493.8,3493.2,2.86269]
[1721647658580,0.04664011,3493.7,3493.2,2.86269]
[1721647660767,0.04664011,3493.7,3493.3,2.86261]
[1721647660947,2.86214,3493.9,3493.3,2.86257]
[1721647661148,0.04662344,3493.8,3493.3,2.86257]
[1721647661445,0.04662344,3493.8,3493.3,2.86256]
[1721647661649,0.04662344,3493.8,3493.1,4.35568353]
[1721647661848,0.04662344,3493.8,3493.4,2.86253]
[1721647663872,0.04662344,3493.8,3493.2,3.68696048]
[1721647664067,0.04662344,3493.8,3493.3,2.86261]
[1721647665781,2.90884344,3493.8,3493.3,2.86261]
[1721647667588,2.90884344,3493.8,3493.0,5.74735129]
[1721647667749,2.90884344,3493.8,3493.2,2.86264]
[1721647668082,0.04662344,3493.8,3493.3,2.86257]
[1721647668484,2.86216,3493.9,3493.3,2.86257]
[1721647668682,0.04661031,3493.7,3493.3,2.86257]
[1721647668986,0.04657619,3493.6,3493.3,2.86257]
[1721647669151,2.86216,3493.9,3493.3,2.86257]
[1721647669591,0.04664675,3493.8,3493.3,2.86257]
[1721647674678,2.90886675,3493.8,3493.1,4.003]
[1721647674883,2.90886675,3493.8,3493.2,2.48824552]
[1721647675085,2.90886675,3493.8,3493.1,4.003]
[1721647675296,2.90886675,3493.8,3493.2,2.48824597]
[1721647675600,2.90886675,3493.8,3493.2,2.86265]
[1721647676803,2.90886675,3493.8,3493.3,0.99529856]
[1721647677116,2.90886675,3493.8,3493.2,2.86265]
[1721647677301,2.90886675,3493.8,3493.3,0.9952983]
[1721647677468,2.90886675,3493.8,3493.2,2.86265]
[1721647677813,2.90886675,3493.8,3493.3,0.99529833]
[1721647677992,2.90886675,3493.8,3493.2,2.86265]
[1721647678174,2.90886675,3493.8,3493.3,0.99529817]
[1721647678374,2.90886675,3493.8,3493.2,2.86265]
[1721647678572,2.90886675,3493.8,3493.3,0.99529812]
[1721647678777,2.90886675,3493.8,3493.2,2.86265]
[1721647679094,2.90886675,3493.8,3493.3,0.99529847]
[1721647679396,2.90886675,3493.8,3493.2,2.86265]
[1721647679578,2.90886675,3493.8,3493.3,0.99529916]
[1721647679781,2.90886675,3493.8,3493.2,2.86265]
[1721647679991,2.90886675,3493.8,3493.3,0.995299]
[1721647680339,2.90886675,3493.8,3493.2,4.46008777]
[1721647680476,2.90886675,3493.8,3493.3,2.48824785]
[1721647680679,2.90886675,3493.8,3493.2,4.46008777]
[1721647680989,2.90886675,3493.8,3493.3,2.48824792]
[1721647681319,2.90886675,3493.8,3493.2,4.46008777]
[1721647681476,2.90886675,3493.8,3493.3,2.48824623]
[1721647681677,2.90886675,3493.8,3493.2,4.46008777]
[1721647681991,2.90886675,3493.8,3493.3,2.48824698]
[1721647682192,2.90886675,3493.8,3493.2,4.46008777]
[1721647682493,2.90886675,3493.8,3493.3,2.48824747]
[1721647682692,2.90886675,3493.8,3493.4,0.99529899]
[1721647683020,2.90886675,3493.8,3493.2,4.46008777]
[1721647683209,2.90886675,3493.8,3493.3,2.48824815]
[1721647683407,2.90886675,3493.8,3493.4,0.99529926]
[1721647683603,2.90886675,3493.8,3493.2,4.46008777]
[1721647683771,2.90886675,3493.8,3493.3,2.48824815]
[1721647683975,2.90886675,3493.8,3493.4,0.99529926]
[1721647684253,2.90886675,3493.8,3493.2,5.05970906]
[1721647684621,2.90886675,3493.8,3493.3,2.48824788]
[1721647684940,2.90886675,3493.8,3493.2,5.05970906]
[1721647684941,2.86229,3493.7,3493.2,5.05970906]
[1721647685095,2.86229,3493.7,3493.3,2.48824837]
[1721647685289,0.04467545,3493.6,3493.4,0.99529881]
[1721647685494,0.04467545,3493.6,3493.2,5.05970906]
[1721647685842,0.04467545,3493.6,3493.3,2.4882488]
[1721647685978,0.04467545,3493.6,3493.4,0.99529952]
[1721647686178,0.04467545,3493.6,3493.2,5.05970906]
[1721647686434,0.04467545,3493.6,3493.3,2.48824708]
[1721647686595,0.04467545,3493.6,3493.4,0.99529883]
[1721647686925,0.04467545,3493.6,3493.2,5.05970906]
[1721647687090,0.04467545,3493.6,3493.3,2.48824675]
[1721647687430,0.04467545,3493.6,3493.4,0.9952987]
[1721647687596,0.04467545,3493.6,3493.2,5.05970906]
[1721647687923,0.04467545,3493.6,3493.3,2.48824778]
[1721647688141,0.04467545,3493.6,3493.4,0.99529911]
[1721647688343,0.04467545,3493.6,3493.2,5.05970906]
[1721647688546,0.04467545,3493.6,3493.3,2.4882454]
[1721647688847,0.04467545,3493.6,3493.4,0.99529816]
[1721647689042,5.13219,3494.0,3493.2,5.05970906]
[1721647689301,0.04468918,3493.9,3493.3,2.48824642]
[1721647689456,0.04468918,3493.9,3493.4,0.99529857]
[1721647689659,2.86222,3493.8,3493.2,3.46227129]
[1721647689810,2.86222,3493.8,3493.3,2.48824365]
[1721647690028,0.04461862,3493.7,3493.4,0.99529746]
[1721647690212,2.86222,3493.8,3493.2,3.46227129]
[1721647690450,2.86222,3493.8,3493.3,2.48824458]
[1721647690451,0.04462777,3493.7,3493.3,2.48824458]
[1721647690612,0.04462777,3493.7,3493.4,2.48824458]
[1721647690815,2.86222,3493.8,3493.2,3.46227129]
[1721647691014,0.04462777,3493.7,3493.3,2.48824425]
[1721647691317,2.86222,3493.8,3493.4,2.48824425]
[1721647691658,2.86222,3493.8,3493.2,3.46227129]
[1721647691828,2.86222,3493.8,3493.3,2.48824688]
[1721647691829,0.04462777,3493.7,3493.3,2.48824688]
[1721647692161,2.86222,3493.8,3493.4,2.48824688]
[1721647692453,2.86222,3493.8,3493.2,3.46226129]
[1721647692658,0.04462719,3493.7,3493.3,2.48824585]
[1721647692958,0.04462719,3493.7,3493.4,2.48824585]
[1721647693117,2.86222,3493.8,3493.3,2.86261]
[1721647693319,0.04459191,3493.6,3493.4,2.4882439]
[1721647693556,0.04462719,3493.7,3493.3,2.86261]
[1721647693855,2.86222,3493.8,3493.4,2.48824442]
[1721647694054,0.04459191,3493.6,3493.5,0.99529777]
[1721647694287,2.86222,3493.8,3493.5,0.99529728]
[1721647694434,0.04459191,3493.6,3493.3,2.86261]
[1721647694643,2.86222,3493.8,3493.4,2.4882441]
[1721647694818,2.86222,3493.8,3493.3,2.86261]
[1721647694819,0.04462719,3493.7,3493.5,0.99529764]
[1721647695019,2.86222,3493.8,3493.3,2.86261]
[1721647695266,0.04462719,3493.7,3493.4,2.48824315]
[1721647695619,0.04462719,3493.7,3493.5,0.99529726]
[1721647695792,2.2701,3494.0,3493.5,2.8624]
[1721647695936,0.04458383,3493.6,3493.5,6.45690086]
[1721647696131,1.19744556,3494.1,3493.7,2.86227]
[1721647696440,0.04472494,3494.0,3493.7,2.86227]
[1721647696873,3.49654556,3494.2,3493.7,5.7245]
[1721647697174,0.04468966,3493.9,3493.7,2.86223]
[1721647697330,3.49654556,3494.2,3493.8,2.86221]
[1721647697768,3.49654556,3494.2,3493.7,2.86228]
[1721647698086,0.04476021,3494.1,3493.7,2.86228]
[1721647698380,0.04476021,3494.1,3493.5,3.86542]
[1721647698381,2.86206,3494.0,3493.5,2.86242]
[1721647698589,2.86206,3494.0,3493.6,0.9952473]
[1721647698883,0.04468966,3493.9,3493.5,2.86242]
[1721647699028,0.04468966,3493.9,3493.6,0.99525062]
[1721647699228,5.26063,3493.8,3493.3,0.59962129]
[1721647699456,0.04461911,3493.7,3493.4,2.48813683]
[1721647699656,0.04461911,3493.7,3493.3,3.46219129]
[1721647699657,0.04461911,3493.7,3493.5,0.99525473]
[1721647699829,5.26063,3493.8,3493.3,3.46219129]
[1721647700049,0.04461911,3493.7,3493.4,2.48816628]
[1721647700243,5.26063,3493.8,3493.5,0.99526651]
[1721647700446,0.04461911,3493.7,3493.3,3.46219129]
[1721647700669,2.3984,3493.8,3493.4,2.48816678]
[1721647700830,2.3984,3493.8,3493.3,3.46219129]
[1721647700831,2.3984,3493.8,3493.5,0.99526671]
[1721647701031,0.04462025,3493.7,3493.4,2.86251]
[1721647701230,2.3984,3493.8,3493.5,2.48815047]
[1721647701459,0.04462025,3493.7,3493.6,0.99526019]
[1721647701858,2.3984,3493.8,3493.6,0.99526019]
[1721647702042,0.04462025,3493.7,3493.5,2.86244]
[1721647702246,2.3984,3493.8,3493.6,0.99525498]
[1721647702446,0.04462025,3493.7,3493.5,2.86244]
[1721647702670,2.3984,3493.8,3493.6,0.99525499]
[1721647702858,0.04458497,3493.6,3493.5,2.86244]
[1721647703065,2.3984,3493.8,3493.5,5.35057648]
[1721647703260,2.3984,3493.8,3493.6,0.99525459]
[1721647703568,2.3984,3493.8,3493.5,2.86244]
[1721647703772,2.3984,3493.8,3493.6,0.9952548]
[1721647703978,1.19744556,3494.2,3493.7,2.86222]
[1721647704151,1.19744556,3494.2,3493.8,2.8622]
[1721647704350,1.19744556,3494.2,3493.7,2.86222]
[1721647704351,1.19744556,3494.2,3493.9,2.86212]
[1721647704950,1.19744556,3494.2,3493.7,5.72444]
[1721647705253,1.19744556,3494.2,3493.7,2.86222]
[1721647706174,1.19744556,3494.2,3493.8,2.86215]
[1721647709279,1.19744556,3494.2,3493.9,2.86211]
[1721647709441,3.64774556,3494.3,3493.9,2.86211]
[1721647711279,1.19744556,3494.3,3494.0,2.86204]
[1721647711481,1.19744556,3494.4,3494.0,2.86204]
[1721647711686,3.46704556,3494.5,3493.9,2.86206]
[1721647711896,3.46704556,3494.5,3493.8,2.86217]
[1721647711897,6.32868556,3494.5,3493.8,2.86217]
[1721647712046,6.32868556,3494.5,3493.9,0.99514976]
[1721647712385,5.13124,3494.5,3493.8,2.86217]
[1721647712680,5.13124,3494.5,3494.0,2.86199]
[1721647712881,0.04507476,3494.4,3494.0,2.86199]
[1721647714278,0.04507476,3494.4,3494.0,2.86198]
[1721647714473,0.04507476,3494.4,3494.1,2.86196]
[1721647714671,0.04507476,3494.4,3494.2,2.86188]
[1721647714855,0.04507476,3494.4,3494.2,2.86181]
[1721647715180,3.46394556,3494.7,3494.3,2.8618]
[1721647715381,3.46394556,3494.7,3494.3,5.72354]
[1721647715552,3.46394556,3494.7,3494.3,2.86174]
[1721647717172,6.32542556,3494.7,3494.2,2.86187]
[1721647718372,5.12798,3494.7,3494.2,2.86187]
[1721647721074,2.2665,3494.7,3494.4,2.8617]
[1721647721488,2.2665,3494.7,3494.2,5.72362]
[1721647721803,2.2665,3494.7,3494.2,2.8618]
[1721647722802,2.2665,3494.7,3494.4,2.86171]
[1721647725215,2.2665,3494.7,3493.8,2.4992]
[1721647725216,2.2665,3494.7,3493.8,3.5022]
[1721647725372,5.128,3494.7,3494.0,2.86199]
[1721647726784,5.128,3494.7,3494.2,2.86184]
[1721647727799,0.04517933,3494.6,3494.2,2.86184]
[1721647728100,2.90674933,3494.6,3494.0,2.86198]
[1721647728606,2.90674933,3494.6,3494.1,2.86196]
[1721647729590,2.86165,3494.5,3494.0,2.86198]
[1721647730108,0.04508256,3494.4,3494.0,2.86198]
[1721647737201,2.3118,3494.3,3493.6,2.86234]
[1721647737403,2.86189,3494.2,3493.6,2.86231]
[1721647737618,2.90541283,3494.2,3493.6,3.55658313]
[1721647738734,2.90541283,3494.2,3493.7,2.86225]
[1721647739407,2.90541283,3494.2,3493.6,3.55658313]
[1721647739738,2.90541283,3494.2,3493.6,2.86231]
[1721647740301,0.04352283,3494.2,3493.7,2.86226]
[1721647740535,0.04352283,3494.2,3493.8,2.86216]
[1721647740903,5.17362,3494.3,3493.7,2.86229]
[1721647741329,0.04349079,3494.2,3493.7,2.86229]
[1721647742228,2.90538079,3494.2,3493.7,2.86229]
[1721647742396,2.90538079,3494.2,3493.5,3.8654]
[1721647742397,2.90538079,3494.2,3493.6,2.86233]
[1721647742744,0.04349079,3494.2,3493.7,2.86225]
[1721647742935,0.04349079,3494.2,3493.7,2.86224]
[1721647743139,0.04349079,3494.2,3493.7,4.31172613]
[1721647743426,0.04349079,3494.2,3493.9,2.86207]
[1721647743726,2.3118,3494.3,3493.9,2.86207]
[1721647743931,0.04348177,3494.1,3493.9,2.86207]
[1721647744127,2.3118,3494.3,3493.9,2.86207]
[1721647744329,0.0434465,3494.0,3493.9,2.86207]
[1721647744516,2.3118,3494.3,3493.9,2.86207]
[1721647744697,0.04351704,3494.2,3493.9,2.86207]
[1721647745027,2.3118,3494.3,3493.9,2.86207]
[1721647745227,0.04348177,3494.1,3493.9,2.86207]
[1721647745429,2.3118,3494.3,3493.9,2.86207]
[1721647745634,0.0434465,3494.0,3493.8,2.8622]
[1721647745928,0.04341123,3493.9,3493.8,2.8622]
[1721647746300,2.3118,3494.3,3493.8,2.8622]
[1721647746500,0.04351704,3494.2,3493.8,2.8622]
[1721647746731,2.3118,3494.3,3493.8,2.8622]
[1721647746933,0.04348177,3494.1,3493.8,2.8622]
[1721647747227,0.04351704,3494.2,3493.8,2.8622]
[1721647747433,0.04344489,3494.0,3493.8,2.8622]
[1721647747626,2.3118,3494.3,3493.8,2.8622]
[1721647747839,0.0433973,3493.9,3493.8,2.8622]
[1721647748043,2.3118,3494.3,3493.8,2.8622]
[1721647748247,0.0433973,3493.9,3493.8,2.8622]
[1721647748706,2.3118,3494.3,3493.8,2.8622]
[1721647749042,0.04350311,3494.2,3493.8,2.8622]
[1721647749247,0.04350311,3494.2,3493.9,2.86209]
[1721647749488,2.3118,3494.3,3494.0,2.86204]
[1721647749665,4.36186018,3494.7,3494.0,2.86204]
[1721647749666,0.04304994,3494.1,3494.0,5.72408]
[1721647749941,3.49814556,3494.7,3494.0,5.72408]
[1721647749942,2.3007,3494.7,3494.4,2.8617]
[1721647751055,2.3007,3494.7,3494.5,2.86162]
[1721647751212,1.19744556,3494.9,3494.5,2.86162]
[1721647751213,2.4779,3494.9,3494.6,2.8615]
[1721647751411,2.4779,3494.9,3494.7,2.86146]
[1721647752123,2.4779,3494.9,3494.5,2.86157]
[1721647752742,2.4779,3494.9,3494.6,2.86154]
[1721647756827,2.4779,3494.9,3494.3,2.86175]
[1721647757007,2.4779,3494.9,3494.5,2.86159]
[1721647757341,5.33924,3494.9,3494.3,2.86175]
[1721647757861,0.04197574,3494.8,3494.4,2.86171]
[1721647761448,2.90337574,3494.8,3494.3,2.86179]
[1721647762438,0.04197574,3494.8,3494.3,2.86172]
[1721647762833,0.04197574,3494.8,3494.4,2.86171]
[1721647764384,0.04197574,3494.8,3494.3,2.86179]
[1721647768092,0.04197574,3494.8,3494.4,2.86171]
[1721647770452,0.04197574,3494.8,3494.5,2.86163]
[1721647774039,0.04197574,3494.8,3494.3,2.86174]
[1721647774040,2.90337574,3494.8,3494.3,2.86174]
[1721647774255,2.3184,3494.5,3494.0,2.86203]
[1721647774738,0.04200963,3494.4,3494.0,2.86203]
[1721647776041,0.04200963,3494.4,3494.0,2.86198]
[1721647776250,0.04200963,3494.4,3494.0,3.86498]
[1721647776396,0.04200963,3494.4,3494.2,2.86188]
[1721647777695,0.04200963,3494.4,3494.3,5.7236]
[1721647778128,2.4647,3494.9,3494.5,5.72315]
[1721647778644,0.04208564,3494.8,3494.5,2.86157]
[1721647780627,0.04208564,3494.8,3494.3,2.86173]
[1721647781030,0.04208564,3494.8,3494.5,2.86158]
[1721647782080,0.04208564,3494.8,3494.7,2.86147]
[1721647782754,0.04057786,3494.8,3494.7,2.86147]
[1721647783056,2.4842,3495.1,3494.7,2.86147]
[1721647783213,0.04057786,3494.8,3494.7,2.86147]
[1721647783720,2.4842,3495.1,3494.7,2.86147]
[1721647784312,0.04065542,3495.0,3494.7,2.86147]
[1721647784515,0.04065542,3495.0,3494.4,1.003]
[1721647784816,0.04065542,3495.0,3494.8,2.86138]
[1721647788331,0.04065542,3495.0,3494.9,5.72262]
[1721647788638,2.4535,3495.4,3495.1,2.8611]
[1721647789047,9.62044556,3495.8,3495.1,2.8611]
[1721647789048,2.2524,3495.7,3495.1,1.003]
[1721647789215,7.42,3495.8,3495.6,2.86073]
[1721647789419,2.2524,3495.9,3495.6,2.86073]
[1721647789931,2.2524,3495.9,3495.6,2.86066]
[1721647790320,2.2524,3496.2,3495.5,1.003]
[1721647790632,2.2524,3496.2,3495.9,2.86049]
[1721647790819,11.47745556,3496.5,3495.9,2.86049]
[1721647791020,2.2524,3496.4,3495.9,2.86049]
[1721647791225,5.11248,3496.4,3495.9,2.86049]
[1721647792863,5.11248,3496.4,3495.7,3.86365]
[1721647793035,5.11248,3496.4,3495.8,2.86057]
[1721647793233,2.86017,3496.3,3495.7,2.86065]
[1721647795525,2.86017,3496.3,3495.7,5.72123]
[1721647795734,2.86017,3496.3,3495.7,2.86058]
[1721647798236,2.86031,3496.2,3495.5,6.30768]
[1721647798441,2.86031,3496.2,3495.5,2.86078]
[1721647798732,2.86037,3496.1,3495.5,2.86078]
[1721647799746,2.4278,3495.8,3495.1,2.86107]
[1721647799957,2.4278,3495.8,3495.3,2.86092]
[1721647800857,5.28838,3495.8,3495.2,3.0]
[1721647801066,2.86067,3495.7,3495.2,3.0]
[1721647801230,3.86367,3495.7,3495.2,3.0]
[1721647801563,2.86067,3495.7,3495.2,3.0]
[1721647806156,2.86074,3495.6,3495.2,3.0]
[1721647806470,2.86074,3495.6,3495.0,2.86122]
[1721647807268,2.2718,3495.5,3494.9,2.86131]
[1721647807769,2.2718,3495.5,3495.1,2.86114]
[1721647807934,2.2718,3495.5,3494.9,2.86131]
[1721647807935,5.13263,3495.5,3494.9,2.86131]
[1721647808286,2.8609,3495.4,3494.8,2.86137]
[1721647808516,3.2748,3495.5,3494.6,1.003]
[1721647808669,6.13566,3495.5,3494.8,2.86138]
[1721647810062,5.13266,3495.5,3494.8,2.86138]
[1721647810498,2.2718,3495.5,3494.9,2.86125]
[1721647810641,2.2718,3495.5,3495.0,2.86122]
[1721647810977,2.4078,3495.7,3495.0,2.86115]
[1721647811143,5.30482,3495.9,3495.2,3.86401]
[1721647811347,5.30458,3496.2,3495.5,2.86078]
[1721647811571,2.86042,3496.0,3495.5,2.86078]
[1721647812270,5.30458,3496.2,3495.5,2.86078]
[1721647812473,4.31552196,3496.1,3495.5,2.86078]
[1721647812678,2.86033,3496.1,3495.5,2.86078]
[1721647813298,6.677308,3496.2,3495.6,2.86068]
[1721647813587,1.45518392,3496.1,3495.6,2.86068]
[1721647813747,6.677308,3496.2,3495.5,2.86078]
[1721647813748,2.4443,3496.2,3495.7,2.86061]
[1721647814780,2.4443,3496.2,3495.5,2.86075]
[1721647815644,2.4443,3496.2,3495.6,2.86069]
[1721647815645,5.30457,3496.2,3495.6,2.86069]
[1721647817298,0.03838036,3496.1,3495.6,2.86069]
[1721647817664,0.03838036,3496.1,3495.6,2.86073]
[1721647818016,0.03838036,3496.1,3495.6,4.495263]
[1721647818215,0.03838036,3496.1,3495.8,2.86053]
[1721647818499,5.15372,3496.4,3495.8,2.86053]
[1721647818711,0.03835619,3496.0,3495.8,2.86053]
[1721647818915,8.01388,3496.4,3495.8,2.86053]
[1721647819210,5.15372,3496.4,3495.8,2.86053]
[1721647819412,0.03848068,3496.3,3495.8,2.86053]
[1721647819917,2.89869068,3496.3,3495.6,3.86373]
[1721647820064,0.03848068,3496.3,3495.6,2.86067]
[1721647820415,0.03848068,3496.3,3495.7,2.86064]
[1721647820588,2.89867068,3496.3,3495.7,2.86064]
[1721647822423,2.86026,3496.2,3495.7,2.86064]
[1721647822632,2.86026,3496.2,3495.5,2.86076]
[1721647822783,2.89877607,3496.1,3495.5,2.86076]
[1721647822984,3.90177607,3496.1,3495.5,2.86076]
[1721647823528,3.90177607,3496.1,3495.6,2.86072]
[1721647823733,3.90177607,3496.1,3495.4,2.86085]
[1721647823928,2.86041,3496.0,3495.4,0.917647]
[1721647824137,2.86053,3495.9,3495.3,5.86097]
[1721647824336,2.8988856,3495.9,3495.3,5.86097]
[1721647824515,0.0383556,3495.9,3495.4,2.86084]
[1721647827038,2.8988456,3495.9,3495.3,3.0]